Cogmind - Beta 12 X4 @@@ ROGUE MODE // 2022.12.10 @ 21:48:50 Player: Lunatic Blue Result: Destroyed by H-81 Overseer with Heavy Linear Accelerator Performance ------------- Evolutions (8) 4000 Regions Visited (21) 4200 Robots Destroyed (159) 795 Value Destroyed (5755) 5755 Prototype IDs (240) 4800 Alien Tech Used (1) 200 Bonus (4900) 4900 TOTAL SCORE: 24650 Bonus ------- Entered DSFs 500 Aligned with FarCom 300 Met Data Miner 300 Used Data Conduit 3000 Met Zhirov 300 Pursued by Intercept 500 Cogmind --------- Core Integrity 0/1450 Matter 34/300 Energy 99/100 System Corruption 0% Temperature Cool (0) Movement Core (50) Location -2/Research Parts ------- > --- POWER (2) -------- (None) > --- PROPULSION (8) --- (None) > --- UTILITY (9) ------ (None) > --- WEAPON (4) ------- (None) > --- INVENTORY (5) ---- Antimissile System Peak State ------------ > --- POWER ------------ Fission Core Light Antimatter Reactor > --- PROPULSION ------- Medium Treads Medium Treads Medium Treads Medium Treads > --- UTILITY ---------- Advanced Heat Sink Huge Storage Unit Advanced Sensor Array Advanced Signal Interpreter Experimental Targeting Computer Improved Medium Armor Plating System Restoration Module > --- WEAPON ----------- Neutron Cannon Improved KE Penetrator Assault Cannon Magnetic Acceleration Cannon > --- INVENTORY -------- Micro Nuclear Core Light Fission Core Cold Fusion Reactor High-capacity Storage Unit Compact Matter Pod Matter Filter Weapon Cycler Improved Power Shielding Layered Medium Armor Plating Medium Reactive Plating Medium Reactive Plating EM Disruption Field Advanced Shield Generator Improved EM Pulse Cannon Proton Cannon XL Autogun Array Improved Grenade Launcher Powered Hammer Greatsword [Rating: 91] Favorites ----------- Power Micro Nuclear Core Engine Improved Ion Engine Power Core Micro Nuclear Core Reactor Light Antimatter Reactor Propulsion Light Treads Treads Light Treads Leg Centrium Leg Wheel Wheel Hover Unit Linear Gravjet Flight Unit Cooled Nuclear Pulse Thruster Utility Huge Storage Unit Device Improved Shield Generator Storage Huge Storage Unit Processor Core Analyzer Hackware Advanced Hacking Suite Protection Light Armor Plating Weapon Improved Light Cannon Energy Gun Small Laser Energy Cannon Neutron Cannon Ballistic Gun Gauss Rifle Ballistic Cannon Improved Light Cannon Launcher Improved Grenade Launcher Impact Weapon Powered Hammer Build | -11 -10 -10 -9 -9 -9 -8 -8 -7 -7 -7 -6 -6 -5 -5 -5 -5 -4 -4 -4 -3 -2 ------- Run | Scr Mat Min Mat Min Exi Min Mat Fac Low Dat Pro Fac Fac Upp Upp Zhi Pro Fac DSF Res Res Slots Evolved 16 | . . . 2 . . . 2 2 . . . 2 2 . . . . 2 . 2 2 Power 1 | . . . . . . . . 1 . . . . . . . . . . . . . Propulsion 6 | . . . 1 . . . 1 . . . . . . . . . . 2 . . 2 Utility 7 | . . . . . . . 1 1 . . . 2 1 . . . . . . 2 . Weapon 2 | . . . 1 . . . . . . . . . 1 . . . . . . . . Parts Attached 194 | 8 5 . 15 2 . . 17 49 2 15 11 26 12 6 5 7 . 4 . 6 4 Power 15 | 1 1 . 2 . . . . 6 . 1 1 2 . 1 . . . . . . . Engine 8 | 1 1 . 2 . . . . 4 . . . . . . . . . . . . . Core 5 | . . . . . . . . 2 . 1 . 1 . 1 . . . . . . . Reactor 2 | . . . . . . . . . . . 1 1 . . . . . . . . . Propulsion 56 | 4 . . 5 . . . 5 17 . 5 2 2 7 2 . 3 . . . . 4 Treads 38 | 2 . . 3 . . . 5 17 . 5 2 2 2 . . . . . . . . Leg 6 | 2 . . . . . . . . . . . . . . . . . . . . 4 Wheel 3 | . . . 2 . . . . . . . . . 1 . . . . . . . . Hover 1 | . . . . . . . . . . . . . 1 . . . . . . . . Flight 8 | . . . . . . . . . . . . . 3 2 . 3 . . . . . Utility 64 | 1 1 . 1 2 . . 12 17 . 1 1 15 2 . 2 3 . 1 . 5 . Device 28 | . . . . . . . 8 8 . . . 9 . . 1 . . 1 . 1 . Storage 3 | 1 1 . . . . . . . . . . . . . . 1 . . . . . Processor 7 | . . . . . . . 1 2 . . . 2 . . 1 . . . . 1 . Hackware 4 | . . . . . . . . 2 . . . . . . . 1 . . . 1 . Protection 22 | . . . 1 2 . . 3 5 . 1 1 4 2 . . 1 . . . 2 . Artifact . | . . . . . . . . . . . . . . . . . . . . . . Weapon 59 | 2 3 . 7 . . . . 9 2 8 7 7 3 3 3 1 . 3 . 1 . Energy Gun 4 | 1 3 . . . . . . . . . . . . . . . . . . . . Energy Cannon 3 | . . . . . . . . . . . 2 1 . . . . . . . . . Ballistic Gun 22 | 1 . . 4 . . . . 2 . 5 . . 2 3 3 . . 1 . 1 . Ballistic Cannon 18 | . . . 3 . . . . 6 1 2 1 2 . . . 1 . 2 . . . Launcher 7 | . . . . . . . . . 1 . 2 3 1 . . . . . . . . Special Weapon . | . . . . . . . . . . . . . . . . . . . . . . Impact Weapon 5 | . . . . . . . . 1 . 1 2 1 . . . . . . . . . Slashing Weapon . | . . . . . . . . . . . . . . . . . . . . . . Piercing Weapon . | . . . . . . . . . . . . . . . . . . . . . . Special Melee Weapon . | . . . . . . . . . . . . . . . . . . . . . . Unidentified Prototypes 2 | . . . 1 . . . . . . . . . . . . 1 . . . . . Corrupted Parts 4 | . . . . . . . . . . . 3 1 . . . . . . . . . System Corruption 21 | . . . . . . . . . . . 16 5 . . . . . . . . . Parts Lost 53 | . . . 1 . . . 3 6 . 6 5 10 12 . 1 . . . . 9 . Power 5 | . . . . . . . . . . 2 1 . 1 . . . . . . 1 . Propulsion 22 | . . . 1 . . . 1 4 . . 1 4 7 . . . . . . 4 . Utility 16 | . . . . . . . 2 2 . 1 1 4 1 . 1 . . . . 4 . Weapon 10 | . . . . . . . . . . 3 2 2 3 . . . . . . . . Highest Loss Streak 9 | . . . 1 . . . 2 2 . 6 3 3 7 . 1 . . . . 9 . To Critical Strikes . | . . . . . . . . . . . . . . . . . . . . . . Average Slot Usage (%) 90 | . 85 85 93 100 100 100 93 99 100 86 85 93 80 18 35 46 64 56 57 50 15 Engine 6 | . 14 14 11 11 11 11 9 7 7 4 . . . . . . . . . . . Core 3 | . . . . . . . . 6 7 7 3 5 4 2 5 5 5 5 5 3 . Reactor 1 | . . . . . . . . . . . 3 6 3 . . . . . . . . Treads 24 | . 28 28 17 22 22 22 27 29 30 30 29 22 13 . . . . . . . . Wheel 2 | . . . 12 11 11 11 4 . . . . . . . . . . . . . . Device 5 | . . . . . . . 10 10 . . . 10 14 . 1 . . . . . . Storage 7 | . 14 14 11 11 11 11 9 7 7 7 7 6 4 . . 2 5 5 5 3 . Processor 6 | . . . . . . . . 8 15 15 15 10 10 . 3 5 5 5 5 6 5 Protection 5 | . . . 7 11 11 11 5 2 7 7 6 10 4 . . 2 5 5 5 3 . Energy Gun 1 | . 14 14 . . . . . . . . . . . . . . . . . . . Energy Cannon 1 | . . . . . . . . . . . . 12 3 . . . . . . . . Ballistic Gun 3 | . 14 14 8 . . . . 2 7 5 1 . 3 3 5 5 5 4 5 3 . Ballistic Cannon 15 | . . . 23 33 33 33 27 19 14 3 10 . 9 . . 1 5 5 5 3 . Impact Weapon 1 | . . . . . . . . . . 3 3 4 . . . . . . . . . Naked Turns 52 | . . . . . . . . . . . . . 2 . . . . . . . 50 Heaviest Build 160 | 13 93 92 103 103 103 103 105 128 128 128 121 160 159 15 11 22 22 22 22 22 . Greatest Support 120 | 40 40 40 40 10 10 10 80 88 80 104 104 112 112 12 12 22 22 22 31 31 120 Greatest Overweight (x) 10 | . 2 2 10 10 10 10 10 1 1 1 1 2 4 3 . . . . . . . Average Overweight (x) 2 | . 1 2 6 10 10 10 5 1 1 1 1 1 1 . . . . . . . . Largest Inventory Capacity 25 | 8 25 25 25 25 25 25 25 25 25 25 25 25 25 5 5 5 5 5 5 5 5 Average Capacity 23 | 5 22 25 25 25 25 25 25 25 25 25 25 25 23 5 5 5 5 5 5 5 5 Most Carried 25 | 4 16 16 21 25 25 25 25 25 25 25 25 25 23 5 5 5 5 5 5 5 1 Average Carried 21 | 2 11 16 17 23 24 24 24 24 25 22 23 22 20 4 4 4 5 5 5 4 1 Final Capacity 25 | 8 25 25 25 25 25 25 25 25 25 25 25 25 5 5 5 5 5 5 5 5 5 Final Carried 25 | 4 16 16 21 25 25 25 25 25 25 25 22 20 4 5 5 5 5 5 5 1 1 Class Distribution -------------------- 27% | Mutant 22% | Scavenger-Skirmisher 16% | Tank 8% | Scavenger-Mutant 7% | Skirmisher 5% | Gunner 3% | Scavenger-Tank 3% | Sprinter Dominant Class ---------------- Mutant | -10/Materials Mutant | -10/Mines Tank | -9/Materials Tank | -9/Mines Tank | -9/Exiles Skirmisher | -8/Mines Scavenger-Skirmisher | -8/Materials Scavenger-Skirmisher | -7/Factory Gunner | -7/Lower Caves Mutant | -7/Data Miner Mutant | -6/Proximity Caves Scavenger-Mutant | -6/Factory Scavenger-Skirmisher | -5/Factory Scavenger-Sprinter | -5/Upper Caves Scavenger-Sprinter | -5/Upper Caves Scavenger-Sprinter | -5/Zhirov Sprinter | -4/Proximity Caves Sprinter | -4/Factory Sprinter | -4/DSF Sprinter | -3/Research Mutant | -2/Research Resources | -11 -10 -10 -9 -9 -9 -8 -8 -7 -7 -7 -6 -6 -5 -5 -5 -5 -4 -4 -4 -3 -2 ----------- Run | Scr Mat Min Mat Min Exi Min Mat Fac Low Dat Pro Fac Fac Upp Upp Zhi Pro Fac DSF Res Res Matter Collected 5118 | 239 125 45 365 192 250 79 611 1202 44 375 429 281 374 115 201 . . . . 164 27 Remotely 323 | . . . . . . . 308 15 . . . . . . . . . . . . . Salvage Created 5896 | . 237 16 518 205 . 142 490 1053 50 375 344 1145 1045 102 174 . . . . . . Parts 272 | . 16 1 25 19 . 7 22 48 4 10 15 51 39 9 6 . . . . . . Haulers Intercepted 8 | . . . 2 . . . 2 2 . . . 1 1 . . . . . . . . Recyclers Shooed 7 | . . . . . . . . 4 . . . 1 2 . . . . . . . . Parts Field Recycled . | . . . . . . . . . . . . . . . . . . . . . . Retrieved Matter . | . . . . . . . . . . . . . . . . . . . . . . Parts Self-Destructed 21 | . . . . . . . . . . . 13 . . 5 3 . . . . . . Prevented . | . . . . . . . . . . . . . . . . . . . . . . Kills | -11 -10 -10 -9 -9 -9 -8 -8 -7 -7 -7 -6 -6 -5 -5 -5 -5 -4 -4 -4 -3 -2 ------- Run | Scr Mat Min Mat Min Exi Min Mat Fac Low Dat Pro Fac Fac Upp Upp Zhi Pro Fac DSF Res Res Combat Hostiles Destroyed 117 | . 6 . 8 7 . 4 14 16 4 4 12 25 11 4 2 . . . . . . Guns 19 | . 6 . 3 . . . . . . . . . 4 4 2 . . . . . . Cannons 69 | . . . 4 7 . 4 14 14 1 . 8 12 5 . . . . . . . . AOE 23 | . . . 1 . . . . . 3 . 4 13 2 . . . . . . . . Classes Destroyed 16 | . 4 . 3 1 . 1 . 2 . . 1 2 1 . 1 . . . . . . Worker 7 | . 1 1 2 . . . 1 1 . . . . 1 . . . . . . . . Builder 4 | . . . . . . . . . . . . 1 3 . . . . . . . . Tunneler 1 | . . . . . . . . . . . . 1 . . . . . . . . . Hauler 8 | . . . 2 . . . 2 2 . . . 1 1 . . . . . . . . Recycler 17 | . . . 2 2 . . 1 7 . . . 1 4 . . . . . . . . Mechanic 1 | . . . . . . . . . . . . . 1 . . . . . . . . Operator 1 | . . . . . . . . 1 . . . . . . . . . . . . . Watcher 3 | . 1 . 1 . . . . 1 . . . . . . . . . . . . . Swarmer 26 | . 3 . 3 4 . . 3 . . . 3 3 3 4 . . . . . . . Grunt 47 | . 3 . 4 2 . 3 6 1 . . 7 17 4 . . . . . . . . Brawler 2 | . . . . 1 . . 1 . . . . . . . . . . . . . . Duelist 3 | . . . . . . . . . . . 2 1 . . . . . . . . . Sentry 11 | . . . 1 . . . 3 6 . . . . 1 . . . . . . . . Hunter 9 | . . . . . . 1 1 3 . . . 1 3 . . . . . . . . Programmer 11 | . . . . . . . . 6 . . . 3 . . 2 . . . . . . Enhanced Grunt 4 | . . . . . . . . . . 4 . . . . . . . . . . . Samaritan 1 | . . . . . . . . . . . . . . . 1 . . . . . . Wasp 3 | . . . . . . . . . 3 . . . . . . . . . . . . Thug 1 | . . . . . . . . . 1 . . . . . . . . . . . . Best Kill Streak 9 | . 3 1 4 4 . 3 7 2 4 3 4 9 9 4 2 . . . . . . Combat Bots Only 8 | . 3 . 3 4 . 3 6 2 4 3 4 8 4 4 2 . . . . . . Max Kills in Single Turn 9 | . 2 1 2 2 . 1 2 1 2 1 2 3 9 1 1 . . . . . . Gunslinging 1 | . 1 . . . . . . . . . . . . . . . . . . . . Exploded 3 | . . . 1 . . . . . 2 . 2 3 1 . . . . . . . . Melee . | . . . . . . . . . . . . . . . . . . . . . . Uniques/NPCs Destroyed . | . . . . . . . . . . . . . . . . . . . . . . Combat | -11 -10 -10 -9 -9 -9 -8 -8 -7 -7 -7 -6 -6 -5 -5 -5 -5 -4 -4 -4 -3 -2 -------- Run | Scr Mat Min Mat Min Exi Min Mat Fac Low Dat Pro Fac Fac Upp Upp Zhi Pro Fac DSF Res Res Damage Taken 13769 | . 142 . 392 160 . 193 559 1635 156 1621 1041 2180 1747 156 326 . . . 185 1275 2001 Core 3399 | . 12 . 26 40 . . 41 167 22 81 64 120 523 62 116 . . . . 585 1540 Absorbed by Shields 697 | . . . . . . . 215 478 . . . . . . . . . . 4 . . Redirected to Shielding 164 | . . . . . . . . . . . . . . . . . . . 92 72 . Core Remaining (%) 76 | 100 . 95 . . . 83 92 . . . 52 85 . . . . 29 . 100 55 . Volleys Fired 314 | . 23 1 27 12 . 8 38 64 5 2 28 53 27 5 14 . . . . 7 . Largest 4 | . 2 2 3 3 . 3 3 3 3 3 3 3 4 1 1 . . . . 1 . Hottest 220 | . 85 85 117 117 . 117 117 131 120 84 120 216 220 60 60 . . . . 60 . Shots Fired 744 | . 46 2 81 36 . 24 114 170 12 6 53 98 76 5 14 . . . . 7 . Gun 156 | . 46 2 27 . . . . 12 4 6 7 . 26 5 14 . . . . 7 . Cannon 570 | . . . 54 36 . 24 114 158 6 . 41 88 49 . . . . . . . . Launcher 18 | . . . . . . . . . 2 . 5 10 1 . . . . . . . . Special . | . . . . . . . . . . . . . . . . . . . . . . Kinetic 613 | . 23 1 81 36 . 24 114 170 10 6 48 2 72 5 14 . . . . 7 . Thermal 113 | . 23 1 . . . . . . . . . 86 3 . . . . . . . . Explosive 18 | . . . . . . . . . 2 . 5 10 1 . . . . . . . . Electromagnetic . | . . . . . . . . . . . . . . . . . . . . . . Robot Hit Streak 39 | . 5 5 9 5 . 6 12 11 7 7 12 9 39 3 26 . . . . 6 . Robot Miss Streak 6 | . 3 . 3 2 . 2 3 6 5 4 3 3 2 5 1 . . . . 4 . Penetration Max 1 | . . . . . . . . . 1 . . . 1 . . . . . . . . Secondary Targets 1 | . 1 . . . . . . . . . . . . . . . . . . . . Max Gunslinging Chain 1 | . 1 . . . . . . . . . . . . . . . . . . . . Shots Hit Robots 492 | . 27 2 44 17 . 15 72 107 5 24 35 60 62 4 13 . . . . 5 . Core Hits 271 | . 15 1 18 9 . 9 28 41 6 7 25 66 32 4 6 . . . . 4 . Critical Kills 1 | . . . . . . . . . . . . . 1 . . . . . . . . Critical Parts Destroyed 7 | . . . . . . . . 3 . 1 . 2 1 . . . . . . . . Critical Strikes 31 | . . . 4 1 . 3 4 9 . 2 1 2 5 . . . . . . . . Destroy 2 | . . . . . . . . . . . . . 2 . . . . . . . . Blast 21 | . . . 4 1 . 3 4 5 . . 1 . 3 . . . . . . . . Smash 8 | . . . . . . . . 4 . 2 . 2 . . . . . . . . . Melee Attacks 55 | . . . . . . . . 16 . 32 . 7 . . . . . . . . . Impact 55 | . . . . . . . . 16 . 32 . 7 . . . . . . . . . Slashing . | . . . . . . . . . . . . . . . . . . . . . . Piercing . | . . . . . . . . . . . . . . . . . . . . . . Sneak Attacks 8 | . . . . . . . . 6 . . . 2 . . . . . . . . . Combat Hostiles . | . . . . . . . . . . . . . . . . . . . . . . Follow-up Attacks . | . . . . . . . . . . . . . . . . . . . . . . Damage Inflicted 17419 | . 354 24 897 445 . 272 1596 2906 412 965 1354 4290 2618 127 785 . . . . 374 . Guns 2993 | . 354 24 273 . . . . 139 101 54 133 . 629 127 785 . . . . 374 . Cannons 8873 | . . . 572 445 . 272 1596 1967 60 . 840 2035 1086 . . . . . . . . Explosions 3525 | . . . 52 . . . . . 251 . 381 1938 903 . . . . . . . . Melee 2028 | . . . . . . . . 800 . 911 . 317 . . . . . . . . . Ramming . | . . . . . . . . . . . . . . . . . . . . . . Kinetic 9526 | . 153 11 845 445 . 272 1596 2106 161 54 973 30 1594 127 785 . . . . 374 . Thermal 3321 | . 201 13 . . . . . . . . . 2223 884 . . . . . . . . Explosive 2315 | . . . . . . . . . 251 . 381 1543 140 . . . . . . . . Electromagnetic 229 | . . . 52 . . . . . . . . 177 . . . . . . . . . Impact 2028 | . . . . . . . . 800 . 911 . 317 . . . . . . . . . Slashing . | . . . . . . . . . . . . . . . . . . . . . . Piercing . | . . . . . . . . . . . . . . . . . . . . . . Highest Corruption 19 | . . . . . . . . 3 3 3 19 6 . . 1 1 1 . . . . Average Corruption 3 | . . . . . . . . 2 3 3 5 2 . . 1 1 1 . . . . Corruption Purged 10 | . . . . . . . . 3 . . . 7 . . . . . . . . . Corruption Blocked . | . . . . . . . . . . . . . . . . . . . . . . Effects 82 | . . . . . . . . 35 3 16 17 11 . . . . . . . . . Message Errors 21 | . . . . . . . . 12 1 2 3 3 . . . . . . . . . Matter Fused 12 | . . . . . . . . 4 . 4 3 1 . . . . . . . . . Heat Flow Errors 10 | . . . . . . . . 2 1 3 1 3 . . . . . . . . . Energy Discharges 13 | . . . . . . . . 7 1 2 3 . . . . . . . . . . Parts Rejected 1 | . . . . . . . . 1 . . . . . . . . . . . . . Data Loss (minor) 12 | . . . . . . . . 5 . 2 3 2 . . . . . . . . . Data Loss (major) 3 | . . . . . . . . 1 . 1 1 . . . . . . . . . . Misfires 4 | . . . . . . . . . . 1 1 2 . . . . . . . . . Alerts 2 | . . . . . . . . 1 . 1 . . . . . . . . . . . Weapon Failures 4 | . . . . . . . . 2 . . 2 . . . . . . . . . . Overload Shots . | . . . . . . . . . . . . . . . . . . . . . . Overflow Damage 1009 | . . . 3 . . 7 3 561 . 142 1 211 81 . . . . . . . . Projectiles 115 | . . . 3 . . 7 3 36 . . 1 48 17 . . . . . . . . Explosions 115 | . . . . . . . . . . . . 51 64 . . . . . . . . Melee 779 | . . . . . . . . 525 . 142 . 112 . . . . . . . . . Knockbacks 69 | . . . 3 4 . 4 15 18 1 2 9 3 10 . . . . . . . . Impact 9 | . . . . . . . . 5 . 2 . 2 . . . . . . . . . Kinetic 53 | . . . 3 4 . 3 12 13 1 . 8 1 8 . . . . . . . . Secondary 7 | . . . . . . 1 3 . . . 1 . 2 . . . . . . . . Self-Inflicted Damage 426 | . . . . . . . . . . . 57 177 192 . . . . . . . . Shots 9 | . . . . . . . . . . . 2 4 3 . . . . . . . . Rammed . | . . . . . . . . . . . . . . . . . . . . . . Targets Rammed . | . . . . . . . . . . . . . . . . . . . . . . Kicked . | . . . . . . . . . . . . . . . . . . . . . . Crushed . | . . . . . . . . . . . . . . . . . . . . . . Highest Temperature 472 | . 54 27 240 262 . 275 293 472 250 259 276 435 198 84 162 . . . . 28 . Average Temperature 96 | . 16 16 80 87 . 129 89 122 114 109 72 116 48 40 75 . . . . 9 . Received Heat Transfer 2383 | . 54 . 165 . . 54 218 301 54 . 321 643 261 . 12 . . . . 138 162 Effects 9 | . . . . . . . . 6 . . . 3 . . . . . . . . . Shutdowns 7 | . . . . . . . . 5 . . . 2 . . . . . . . . . Energy Bleed 1 | . . . . . . . . . . . . 1 . . . . . . . . . Damage (minor) 1 | . . . . . . . . 1 . . . . . . . . . . . . . Siege Activations . | . . . . . . . . . . . . . . . . . . . . . . Robots Corrupted . | . . . . . . . . . . . . . . . . . . . . . . Combat Hostiles . | . . . . . . . . . . . . . . . . . . . . . . Parts Fried 11 | . . . . . . . . 6 . 1 . 4 . . . . . . . . . Impact Corruptions 23 | . . . . . . . . 11 . 7 . 5 . . . . . . . . . Robots Melted . | . . . . . . . . . . . . . . . . . . . . . . Combat Hostiles . | . . . . . . . . . . . . . . . . . . . . . . Parts Melted . | . . . . . . . . . . . . . . . . . . . . . . Heat Transferred 1110 | . 473 37 . . . . . . . . . 150 450 . . . . . . . . Parts Sabotaged . | . . . . . . . . . . . . . . . . . . . . . . Parts Stolen . | . . . . . . . . . . . . . . . . . . . . . . Parts Stripped . | . . . . . . . . . . . . . . . . . . . . . . Power Chain Reactions 3 | . . . . . . . . . . . . 3 . . . . . . . . . Missiles Intercepted . | . . . . . . . . . . . . . . . . . . . . . . Alert | -11 -10 -10 -9 -9 -9 -8 -8 -7 -7 -7 -6 -6 -5 -5 -5 -5 -4 -4 -4 -3 -2 ------- Run | Scr Mat Min Mat Min Exi Min Mat Fac Low Dat Pro Fac Fac Upp Upp Zhi Pro Fac DSF Res Res Peak Influence 354 | . 155 15 160 231 . 100 329 240 . . . 353 354 . . . . 43 30 184 195 Initial 149 | . . 10 5 55 . . 39 149 . . . 6 121 . . . . 28 30 5 60 Average 105 | . 69 12 51 165 . 79 152 98 . . . 169 133 . . . . 29 28 56 85 Maximum Alert Level 1 | . . . . 1 . . 1 1 . . . 1 1 . . . . . . . . Low Security (%) 86 | 100 100 100 100 48 . 100 66 97 . . . 51 85 . . . . 100 100 100 100 Level 1 13 | . . . . 51 . . 33 2 . . . 48 14 . . . . . . . . Level 2 . | . . . . . . . . . . . . . . . . . . . . . . Level 3 . | . . . . . . . . . . . . . . . . . . . . . . Level 4 . | . . . . . . . . . . . . . . . . . . . . . . Level 5 . | . . . . . . . . . . . . . . . . . . . . . . High Security . | . . . . . . . . . . . . . . . . . . . . . . Max Security . | . . . . . . . . . . . . . . . . . . . . . . Squads Dispatched 27 | . 1 . . . . . 3 10 . . . 5 3 . . . . . 1 3 1 Investigation 1 | . . . . . . . . . . . . . . . . . . . . . 1 Extermination 7 | . . . . . . . . 5 . . . 2 . . . . . . . . . Reinforcement 10 | . 1 . . . . . 3 1 . . . 3 1 . . . . . 1 . . Assault . | . . . . . . . . . . . . . . . . . . . . . . Garrison 7 | . . . . . . . . 4 . . . . 2 . . . . . . 1 . Intercept 2 | . . . . . . . . . . . . . . . . . . . . 2 . Searches Triggered . | . . . . . . . . . . . . . . . . . . . . . . Construction Impeded 3 | . . . . . . . . . . . . 2 1 . . . . . . . . Haulers Reinforced . | . . . . . . . . . . . . . . . . . . . . . . Active Scanning Responses . | . . . . . . . . . . . . . . . . . . . . . . Cargo Convoy Interrupts . | . . . . . . . . . . . . . . . . . . . . . . Stealth | -11 -10 -10 -9 -9 -9 -8 -8 -7 -7 -7 -6 -6 -5 -5 -5 -5 -4 -4 -4 -3 -2 --------- Run | Scr Mat Min Mat Min Exi Min Mat Fac Low Dat Pro Fac Fac Upp Upp Zhi Pro Fac DSF Res Res Distress Signals 9 | . 2 . 1 . . . 2 1 . . . 1 1 . . . . . . . 1 Communications Jammed . | . . . . . . . . . . . . . . . . . . . . . . Distress Signals . | . . . . . . . . . . . . . . . . . . . . . . Times Spotted 213 | . 14 . 16 7 . 3 25 26 4 4 16 25 18 4 3 . 2 . 6 17 23 Peak Tracking Total 19 | . 4 . 4 4 . 2 9 2 4 4 4 4 5 4 3 . 3 . 7 10 19 Tactical Retreats 15 | . . . 1 . . . 3 . . . 2 . 1 . . . 3 . . 2 3 Traps | -11 -10 -10 -9 -9 -9 -8 -8 -7 -7 -7 -6 -6 -5 -5 -5 -5 -4 -4 -4 -3 -2 ------- Run | Scr Mat Min Mat Min Exi Min Mat Fac Low Dat Pro Fac Fac Upp Upp Zhi Pro Fac DSF Res Res Traps Triggered 9 | . . . 1 . . . . 1 . . . 5 . . . . . . 1 . 1 Indirectly . | . . . . . . . . . . . . . . . . . . . . . . Trap Hack Attempts . | . . . . . . . . . . . . . . . . . . . . . . Triggered . | . . . . . . . . . . . . . . . . . . . . . . Disarmed . | . . . . . . . . . . . . . . . . . . . . . . Reprogrammed . | . . . . . . . . . . . . . . . . . . . . . . Reused . | . . . . . . . . . . . . . . . . . . . . . . Traps Extracted . | . . . . . . . . . . . . . . . . . . . . . . Installed . | . . . . . . . . . . . . . . . . . . . . . . Triggered 2 | . . . . . . . . . 2 . . . . . . . . . . . . Machines | -11 -10 -10 -9 -9 -9 -8 -8 -7 -7 -7 -6 -6 -5 -5 -5 -5 -4 -4 -4 -3 -2 ---------- Run | Scr Mat Min Mat Min Exi Min Mat Fac Low Dat Pro Fac Fac Upp Upp Zhi Pro Fac DSF Res Res Machines Disabled 15 | . . . 1 . . . 1 2 . . . 7 4 . . . . . . . . Max in Single Turn 4 | . . . 1 . . . 1 1 . . . 2 4 . . . . . . . . Machines Sabotaged . | . . . . . . . . . . . . . . . . . . . . . . Overloaded Fab Kills . | . . . . . . . . . . . . . . . . . . . . . . Hacking | -11 -10 -10 -9 -9 -9 -8 -8 -7 -7 -7 -6 -6 -5 -5 -5 -5 -4 -4 -4 -3 -2 --------- Run | Scr Mat Min Mat Min Exi Min Mat Fac Low Dat Pro Fac Fac Upp Upp Zhi Pro Fac DSF Res Res Machines Accessed 33 | . 1 . 3 . 2 . . 6 . 4 . 6 . . . 4 . 3 . 4 . Terminals 17 | . 1 . 3 . . . . 2 . . . 6 . . . . . 2 . 3 . Fabricators . | . . . . . . . . . . . . . . . . . . . . . . Repair Stations 1 | . . . . . . . . 1 . . . . . . . . . . . . . Recycling Units 3 | . . . . . . . . 2 . . . . . . . . . 1 . . . Scanalyzers 1 | . . . . . . . . . . . . . . . . . . . . 1 . Garrison Access 1 | . . . . . . . . 1 . . . . . . . . . . . . . Total Hacks 88 | . 1 . 9 . 2 . . 12 . 33 . 9 . . . 13 . 4 . 5 . Successful 62 | . . . 3 . 2 . . 3 . 33 . 1 . . . 13 . 3 . 4 . Failed 26 | . 1 . 6 . . . . 9 . . . 8 . . . . . 1 . 1 . Catastrophic 14 | . 1 . . . . . . 5 . . . 7 . . . . . . . 1 . Database Lockouts . | . . . . . . . . . . . . . . . . . . . . . . Manual 22 | . 1 . 9 . 1 . . 4 . . . 6 . . . . . . . 1 . Terminals 32 | . 1 . 9 . . . . 7 . . . 9 . . . . . 2 . 4 . Fabricators . | . . . . . . . . . . . . . . . . . . . . . . Repair Stations 1 | . . . . . . . . 1 . . . . . . . . . . . . . Recycling Units 5 | . . . . . . . . 3 . . . . . . . . . 2 . . . Scanalyzers 1 | . . . . . . . . . . . . . . . . . . . . 1 . Garrison Access 1 | . . . . . . . . 1 . . . . . . . . . . . . . Terminal Hacks 57 | . . . 2 . 2 . . 1 . 33 . 1 . . . 13 . 2 . 3 . Record 18 | . . . . . 1 . . . . 11 . . . . . 5 . . . 1 . Part Schematic 16 | . . . . . . . . . . 12 . . . . . 4 . . . . . Robot Schematic 7 | . . . . . . . . . . 7 . . . . . . . . . . . Robot Analysis 1 | . . . 1 . . . . . . . . . . . . . . . . . . Prototype ID Bank 7 | . . . . . . . . . . 3 . . . . . 4 . . . . . Open DSF 3 | . . . . . . . . . . . . . . . . . . 2 . 1 . Level Access Points 1 | . . . . . . . . . . . . . . . . . . . . 1 . Branch Access Points 2 | . . . 1 . . . . 1 . . . . . . . . . . . . . Unreport Threat 1 | . . . . . . . . . . . . 1 . . . . . . . . . EX-Prototype ID Bank 1 | . . . . . 1 . . . . . . . . . . . . . . . . Fabricator Hacks . | . . . . . . . . . . . . . . . . . . . . . . Repair Station Hacks . | . . . . . . . . . . . . . . . . . . . . . . Recycling Unit Hacks 3 | . . . . . . . . 2 . . . . . . . . . 1 . . . Report Inventory 1 | . . . . . . . . 1 . . . . . . . . . . . . . Retrieve Matter 1 | . . . . . . . . . . . . . . . . . . 1 . . . Retrieve Components 1 | . . . . . . . . 1 . . . . . . . . . . . . . Scanalyzer 1 | . . . . . . . . . . . . . . . . . . . . 1 . Insert Component 1 | . . . . . . . . . . . . . . . . . . . . 1 . Garrison Access Hacks . | . . . . . . . . . . . . . . . . . . . . . . Unauthorized Hacks 1 | . . . 1 . . . . . . . . . . . . . . . . . . Terminals 1 | . . . 1 . . . . . . . . . . . . . . . . . . Operators 1 | . . . 1 . . . . . . . . . . . . . . . . . . Fabricators . | . . . . . . . . . . . . . . . . . . . . . . Repair Stations . | . . . . . . . . . . . . . . . . . . . . . . Recycling Units . | . . . . . . . . . . . . . . . . . . . . . . Scanalyzers . | . . . . . . . . . . . . . . . . . . . . . . Garrison Access . | . . . . . . . . . . . . . . . . . . . . . . Data Cores Recovered . | . . . . . . . . . . . . . . . . . . . . . . Used . | . . . . . . . . . . . . . . . . . . . . . . Hacking Detections 18 | . 1 . 3 . . . . 5 . . . 6 . . . . . 1 . 2 . Full Trace Events . | . . . . . . . . . . . . . . . . . . . . . . Feedback Events . | . . . . . . . . . . . . . . . . . . . . . . Feedback Blocked . | . . . . . . . . . . . . . . . . . . . . . . Robot Schematics Acquired 7 | . . . . . . . . . . 7 . . . . . . . . . . . Robots Built . | . . . . . . . . . . . . . . . . . . . . . . Authchips . | . . . . . . . . . . . . . . . . . . . . . . Time . | . . . . . . . . . . . . . . . . . . . . . . Total Robot Build Rating . | . . . . . . . . . . . . . . . . . . . . . . Part Schematics Acquired 16 | . . . . . . . . . . 12 . . . . . 4 . . . . . Parts Built . | . . . . . . . . . . . . . . . . . . . . . . Authchips . | . . . . . . . . . . . . . . . . . . . . . . Time . | . . . . . . . . . . . . . . . . . . . . . . Total Part Build Rating . | . . . . . . . . . . . . . . . . . . . . . . Parts Repaired . | . . . . . . . . . . . . . . . . . . . . . . Time . | . . . . . . . . . . . . . . . . . . . . . . Parts Recycled . | . . . . . . . . . . . . . . . . . . . . . . Recycled Matter . | . . . . . . . . . . . . . . . . . . . . . . Retrieved Matter . | . . . . . . . . . . . . . . . . . . . . . . Retrieved Components 9 | . . . . . . . . 9 . . . . . . . . . . . . . Parts Scanalyzed . | . . . . . . . . . . . . . . . . . . . . . . Part Schematics Acquired . | . . . . . . . . . . . . . . . . . . . . . . Parts Damaged . | . . . . . . . . . . . . . . . . . . . . . . Bothacking | -11 -10 -10 -9 -9 -9 -8 -8 -7 -7 -7 -6 -6 -5 -5 -5 -5 -4 -4 -4 -3 -2 ------------ Run | Scr Mat Min Mat Min Exi Min Mat Fac Low Dat Pro Fac Fac Upp Upp Zhi Pro Fac DSF Res Res Used RIF Installer . | . . . . . . . . . . . . . . . . . . . . . . Robots Hacked . | . . . . . . . . . . . . . . . . . . . . . . Non-combat . | . . . . . . . . . . . . . . . . . . . . . . Combat . | . . . . . . . . . . . . . . . . . . . . . . Robot Hacks Applied . | . . . . . . . . . . . . . . . . . . . . . . Relay Couplers Released . | . . . . . . . . . . . . . . . . . . . . . . Fabnet Peak Effective % . | . . . . . . . . . . . . . . . . . . . . . . Robots Rewired 1 | . . . . . . . . . . . . . . . . . . 1 . . . Allies Hacked . | . . . . . . . . . . . . . . . . . . . . . . Hacks Repelled . | . . . . . . . . . . . . . . . . . . . . . . Allies | -11 -10 -10 -9 -9 -9 -8 -8 -7 -7 -7 -6 -6 -5 -5 -5 -5 -4 -4 -4 -3 -2 -------- Run | Scr Mat Min Mat Min Exi Min Mat Fac Low Dat Pro Fac Fac Upp Upp Zhi Pro Fac DSF Res Res Total Allies 1 | . . . . . . . . . . . . . . . . . . 1 . . . Largest Group 1 | . . . . . . . . . . . . . . . . . . 1 1 . . Highest-Rated Group 12 | . . . . . . . . . . . . . . . . . . 12 12 . . Highest-Rated Ally 12 | . . . . . . . . . . . . . . . . . . 12 12 . . Total Orders . | . . . . . . . . . . . . . . . . . . . . . . Ally Attacks 4 | . . . . . . . . . . . . . . . . . . . 4 . . Total Damage 57 | . . . . . . . . . . . . . . . . . . . 57 . . Kills . | . . . . . . . . . . . . . . . . . . . . . . Allies Corrupted . | . . . . . . . . . . . . . . . . . . . . . . Allies Melted . | . . . . . . . . . . . . . . . . . . . . . . Intel | -11 -10 -10 -9 -9 -9 -8 -8 -7 -7 -7 -6 -6 -5 -5 -5 -5 -4 -4 -4 -3 -2 ------- Run | Scr Mat Min Mat Min Exi Min Mat Fac Low Dat Pro Fac Fac Upp Upp Zhi Pro Fac DSF Res Res Robot Analysis Total 132 | . . . 1 . . . . . . 131 . . . . . . . . . . . Derelict Logs Recovered 7 | . . 2 . 1 . . . . 1 . 1 . . 1 . . 1 . . . . Drone Launches . | . . . . . . . . . . . . . . . . . . . . . . Drone Recoveries . | . . . . . . . . . . . . . . . . . . . . . . Exploration | -11 -10 -10 -9 -9 -9 -8 -8 -7 -7 -7 -6 -6 -5 -5 -5 -5 -4 -4 -4 -3 -2 ------------- Run | Scr Mat Min Mat Min Exi Min Mat Fac Low Dat Pro Fac Fac Upp Upp Zhi Pro Fac DSF Res Res Turns Passed 11728 | 110 676 298 743 438 817 345 623 3200 283 773 905 1177 631 81 101 56 84 57 16 142 172 Spaces Moved 5788 | 69 203 93 281 167 354 138 193 1162 109 263 334 379 264 192 237 158 322 155 55 438 222 Core 185 | 4 . . . . . . . . . . . . 10 6 . . . . . 21 144 Treads 2866 | 36 203 93 35 . . . 90 1162 109 263 334 379 162 . . . . . . . . Legs 107 | 29 . . . . . . . . . . . . . . . . . . . . 78 Wheels 1008 | . . . 246 167 354 138 103 . . . . . . . . . . . . . . Hover 5 | . . . . . . . . . . . . . 5 . . . . . . . . Flight 1617 | . . . . . . . . . . . . . 87 186 237 158 322 155 55 417 . Fastest Speed 17 | 50 160 320 140 230 230 230 230 240 245 242 242 240 32 29 29 26 26 26 17 17 50 Average Speed 174 | 136 287 320 203 230 230 230 234 241 245 243 242 246 195 34 29 27 26 26 22 26 74 Slowest Speed 480 | 160 320 320 320 230 230 230 240 245 245 245 243 320 480 275 29 29 26 26 26 50 120 Overloaded Moves 59 | . . . . . . . . . . . . . . . . . . . 19 40 . Propulsion Burnouts 1 | . . . . . . . . . . . . . . . . . . . . 1 . Robots Hopped 10 | . . . . . . . . . . . . . . . 1 . . 4 2 3 . Cave-ins Triggered . | . . . . . . . . . . . . . . . . . . . . . . Exploration Rate (%) 33 | 6 27 35 20 43 76 23 14 27 16 80 51 17 14 43 47 60 61 4 48 15 14 Regions Visited 21 Branch Regions 11 Pre-discovered Areas 28 | . . 1 . . 1 . . . . 22 . . . 1 . 3 . . . . . Known Exits Taken 8 | . . . 1 1 . . 1 1 . . . 1 1 . . . . 1 . 1 . Unknown Exits Taken 12 | 1 1 1 . . 1 1 . . 1 1 1 . . 1 1 1 1 . . . . Scrap Searched 5 | . . 1 . 1 . . . . . . 2 . . . 1 . . . . . . Spaces Dug 26 | . . . . . . . . . . . 11 15 . . . . . . . . . Terrain Destroyed 255 | . . . 4 2 . . 5 7 31 . 61 122 18 4 1 . . . . . . Melee 1 | . . . . . . . . . . . . 1 . . . . . . . . . Projectile 54 | . . . 4 2 . . 5 7 4 . 4 21 2 4 1 . . . . . . AOE 200 | . . . . . . . . . 27 . 57 100 16 . . . . . . . . Terrain Rammed . | . . . . . . . . . . . . . . . . . . . . . . Walls Destroyed . | . . . . . . . . . . . . . . . . . . . . . . Machines Disabled . | . . . . . . . . . . . . . . . . . . . . . . Actions | -11 -10 -10 -9 -9 -9 -8 -8 -7 -7 -7 -6 -6 -5 -5 -5 -5 -4 -4 -4 -3 -2 --------- Run | Scr Mat Min Mat Min Exi Min Mat Fac Low Dat Pro Fac Fac Upp Upp Zhi Pro Fac DSF Res Res Total 6735 | 82 252 93 394 196 360 151 275 1425 115 344 383 493 314 205 258 168 321 166 55 459 226 Wait 187 | . . . 51 10 . . 21 52 . 14 5 16 10 . . . . 3 . 5 . Move 5750 | 68 202 92 280 166 353 137 192 1161 108 262 333 378 263 191 234 157 321 147 51 432 222 Hop 7 | . . . . . . . . . . . . . . . 1 . . 3 1 2 . Pick Up 104 | 4 15 . 10 4 2 3 3 35 . 11 3 9 2 . 1 1 . . . 1 . Fast Attach 69 | 8 1 . 6 . . . 4 7 . 1 3 4 10 4 3 5 . 4 . 5 4 Attach 46 | . . . 3 . . . 2 10 . 8 7 9 1 2 2 1 . . . 1 . Detach 8 | . . . 1 . . . . . . 1 2 . . 3 1 . . . . . . Swap 80 | . 4 . 6 2 . . 11 32 2 6 1 13 1 . . 2 . . . . . Drop 103 | 2 7 . 10 2 5 3 4 46 . 7 1 2 . . 2 2 . 4 . 6 . Fire 314 | . 23 1 27 12 . 8 38 64 5 2 28 53 27 5 14 . . . . 7 . Melee 55 | . . . . . . . . 16 . 32 . 7 . . . . . . . . . Ram . | . . . . . . . . . . . . . . . . . . . . . . Kick . | . . . . . . . . . . . . . . . . . . . . . . Crush . | . . . . . . . . . . . . . . . . . . . . . . Escape Stasis 7 | . . . . . . . . 2 . . . 2 . . . . . . 3 . . Rewire 5 | . . . . . . . . . . . . . . . . . . 5 . . . Trap . | . . . . . . . . . . . . . . . . . . . . . . Miscellaneous . | . . . . . . . . . . . . . . . . . . . . . . Route ------- -11/Scrapyard -10/Materials -10/Mines -9/Materials (discovered 3 exits: [*Mat] / *Min x2) -9/Mines (discovered 2 exits: [*Mat] / *Exi) -9/Exiles -8/Mines -8/Materials -7/Factory (discovered 4 exits: *Fac / *Sto / *Low x2) -7/Lower Caves -7/Data Miner -6/Proximity Caves -6/Factory -5/Factory -5/Upper Caves -5/Upper Caves -5/Zhirov -4/Proximity Caves -4/Factory (discovered 2 exits: DSF / DSF) -4/DSF -3/Research (discovered 4 exits: *Res x3 / [*Arm]) -2/Research History --------- Turn | Location | Event 3 | -11/Scrapyard | Discovered new exit (range 15) 111 | -11/Scrapyard | Entered Materials 315 | -10/Materials | Build established: Mutant 443 | -10/Materials | Discovered new exit (range 16) 787 | -10/Materials | Entered Mines 816 | -10/Mines | Learned location of Storage (-7) 928 | -10/Mines | Learned Materials terminal intel 1062 | -10/Mines | Discovered new exit (range 8) 1085 | -10/Mines | Entered Materials 1085 | -9/Materials | Evolved 2 slots: Propulsion x1, Weapon x1 1086 | -9/Materials | Loaded intel: 12 terminal locations 1165 | -9/Materials | Identified exit to Mines 1514 | -9/Materials | Discovered new exit (range 16) 1586 | -9/Materials | Build established: Tank 1828 | -9/Materials | Entered Mines 2060 | -9/Mines | Discovered new exit (range 5) 2149 | -9/Mines | Identified exit to Exiles 2257 | -9/Mines | Deemed a non-threat by the Exiles lab entrance 2266 | -9/Mines | Entered Exiles 2319 | -9/Exiles | Met 8R-AWN 2363 | -9/Exiles | Met EX-HEX 2462 | -9/Exiles | Learned location of Zion (-6) 2464 | -9/Exiles | Met EX-DEC 2555 | -9/Exiles | Visited The Gauntlet 2671 | -9/Exiles | Met EX-BIN 2703 | -9/Exiles | Aligned with FarCom system 2706 | -9/Exiles | Given EX-Vault access code 2759 | -9/Exiles | Opened EX-Vault 2777 | -9/Exiles | Found XL Autogun Array 2824 | -9/Exiles | Warned to stay clear of 0b10 Research branches 3062 | -9/Exiles | Discovered new exit (range 10) 3083 | -9/Exiles | Left Exiles lab with XL Autogun Array 3083 | -9/Exiles | Entered Mines 3388 | -8/Mines | Build established: Skirmisher 3414 | -8/Mines | Discovered new exit (range 6) 3428 | -8/Mines | Entered Materials 3428 | -8/Materials | Evolved 2 slots: Propulsion x1, Utility x1 4045 | -8/Materials | Discovered new exit (range 3) 4051 | -8/Materials | Identified exit to Factory 4051 | -8/Materials | Entered Factory 4051 | -7/Factory | Evolved 2 slots: Power x1, Utility x1 4165 | -7/Factory | Build established: Scavenger-Skirmisher 4923 | -7/Factory | Garrison activated, responded to threat 5162 | -7/Factory | Discovered new exit (range 4) 5554 | -7/Factory | Discovered new exit (range 16) 6392 | -7/Factory | Garrison activated, responded to threat 7003 | -7/Factory | Identified exit to Storage 7003 | -7/Factory | Identified exit to Lower Caves 7251 | -7/Factory | Entered Lower Caves 7271 | -7/Lower Caves | Ambushed by wild Derelicts 7428 | -7/Lower Caves | Learned Factory garrison access intel 7505 | -7/Lower Caves | A Derelict revealed a hidden shortcut to meet someone special 7534 | -7/Lower Caves | Entered Data Miner 7534 | -7/Data Miner | Discovered new exit (range 6) 7549 | -7/Data Miner | Build established: Gunner 7607 | -7/Data Miner | Met Data Miner 7673 | -7/Data Miner | Acquired the access code to Warlord's prototype stash 7673 | -7/Data Miner | Learned location of Section 7 (-2) 7695 | -7/Data Miner | Received God Mode back door access code from Data Miner 7864 | -7/Data Miner | Build established: Mutant 7899 | -7/Data Miner | Interfaced with the Data Conduit 8054 | -7/Data Miner | Lost 6 parts (2p1u3w) 8307 | -7/Data Miner | Entered Proximity Caves 8797 | -6/Proximity Caves | Lost 3 parts (1p1n1w) 9185 | -6/Proximity Caves | Discovered new exit (range 6) 9199 | -6/Proximity Caves | System corruption reached 10% 9212 | -6/Proximity Caves | Entered Factory 9212 | -6/Factory | Evolved 2 slots: Utility x2 9213 | -6/Factory | Loaded intel: 239 machine locations 9214 | -6/Factory | Loaded intel: 4 garrison access locations 9607 | -6/Factory | Lost 3 parts (2n1w) 9643 | -6/Factory | Destroyed 8 combat bots 9986 | -6/Factory | Found Exp. Targeting Computer 10294 | -6/Factory | Discovered new exit (range 14) 10331 | -6/Factory | Lost 3 parts (1n1u1w) 10387 | -6/Factory | Identified exit to Factory 10389 | -6/Factory | Entered another Factory area 10389 | -5/Factory | Evolved 2 slots: Utility x1, Weapon x1 10390 | -5/Factory | Identified exit to Upper Caves 10391 | -5/Factory | Loaded intel: 295 machine locations 10597 | -5/Factory | Build established: Scavenger-Skirmisher 10660 | -5/Factory | Spotted B-75 Beast 10848 | -5/Factory | Garrison activated, responded to threat 10890 | -5/Factory | Lost 4 parts (1p2n1w) 10975 | -5/Factory | Released all parts (10) 11020 | -5/Factory | Core integrity fell below 50% 11020 | -5/Factory | Entered Upper Caves 11046 | -5/Upper Caves | Lost 7 parts (4n1u2w) 11097 | -5/Upper Caves | Discovered new exit (range 16) 11101 | -5/Upper Caves | Entered another Upper Caves area 11178 | -5/Upper Caves | Spotted B-75 Beast 11198 | -5/Upper Caves | Discovered new exit (range 15) 11202 | -5/Upper Caves | Entered Zhirov 11202 | -5/Zhirov | Discovered new exit (range 3) 11208 | -5/Zhirov | Met Zhirov 11216 | -5/Zhirov | Zhirov requested help retrieving the SGEMP Prototype 11220 | -5/Zhirov | Found Alien Artifact 11220 | -5/Zhirov | Identified Integrated Dissipator 11220 | -5/Zhirov | Installed Integrated Dissipator, increased core heat dissipation (+20) 11244 | -5/Zhirov | Found Alien Artifact 11258 | -5/Zhirov | Entered Proximity Caves 11289 | -4/Proximity Caves | Learned Research garrison access intel 11340 | -4/Proximity Caves | Discovered new exit (range 7) 11342 | -4/Proximity Caves | Entered Factory 11342 | -4/Factory | Evolved 2 slots: Propulsion x2 11343 | -4/Factory | Loaded intel: 287 machine locations 11345 | -4/Factory | Identified exit to DSF 11359 | -4/Factory | Identified exit to DSF 11399 | -4/Factory | Entered DSF 11399 | -4/DSF | Accompanied by 1 ally 11400 | -4/DSF | Loaded intel: 3 machine locations 11406 | -4/DSF | Discovered new exit (range 15) 11415 | -4/DSF | Entered Research 11415 | -3/Research | Evolved 2 slots: Utility x2 11416 | -3/Research | Loaded intel: 123 machine locations 11417 | -3/Research | Loaded intel: 4 garrison access locations 11424 | -3/Research | Identified Transdimensional Reconstructor 11436 | -3/Research | Identified exit to Research 11486 | -3/Research | Found Antimissile System 11505 | -3/Research | Intercept squad dispatched 11517 | -3/Research | Discovered new exit (range 9) 11520 | -3/Research | Build established: Sprinter 11530 | -3/Research | Spotted Tracker 11538 | -3/Research | Garrison activated, responded to threat 11557 | -3/Research | Entered another Research area 11557 | -2/Research | Evolved 2 slots: Propulsion x2 11558 | -2/Research | Loaded intel: 96 machine locations 11586 | -2/Research | Lost 9 parts (1p4n4u) 11679 | -2/Research | Released all parts (6) 11689 | -2/Research | Spotted B-90 Cyclops 11702 | -2/Research | Core integrity fell below 50% 11703 | -2/Research | Spotted B-90 Cyclops 11719 | -2/Research | Core integrity fell below 20% 11729 | -2/Research | Destroyed by H-81 Overseer with Heavy Linear Accelerator Last Messages --------------- 11676_ ALERT: Security rotation in progress. 11678_ Slug penetrates Wall. 11678_ Penetrated by Slug. 11679_ Released Imp. Salvage Targeting Computer. 11679_ Released Core Analyzer. 11679_ Released Centrium Leg. 11680_ Slug penetrates Wall. 11687_ Critical hit (Burn: +37). 11690_ G-73 Enforcer suffers critical hit (Burn). 11692_ Acquired 3 matter. 11704_ K-01 Serf cleans the Terminal. 11705_ K-01 Serf destroyed. 11706_ Acquired 24 matter. 11706_ Fabricator disabled. 11706_ K-01 Serf destroyed. 11706_ K-01 Serf collects debris. 11708_ K-01 Serf cleans the Quantum Generator. 11709_ K-01 Serf collects debris. 11717_ R-10 Processor collects Wheel. 11727_ Knocked back. Map ----- +----------------------------------------------------+ | ?????????????????????????????????????????????????? | | ?????????????????????????????????????????????????? | | ?????????????????????????????????????????????????? | | ?????????????????????????????????????????????????? | | ?????????????????????????????????????????????????? | | ????????????????????????????????"""""????????????? | | ????????????????????????????????"""""????????????? | | ????????????????????????????????"""""????????????? | | ?????????????????????????????????????????????????? | | ?????????????????????????????????????????????????? | | ??????????????????????? ????????"""????????????? | | ?????????????????????# ?????????Y"????????????? | | ?????????????????????# ????????"""????????????? | | ?????????????????????#H ???????????????????????? | | ?????????????????????# ???????????????????????? | | ?????????????????????# ???????????????????????? | | ?????????????????????# ???????????????????????? | | ?????????????????????# #??????????????????????? | | ?????????????????????# R#??????????????????????? | | ?????????????????????# #??????????????????????? | | ?????????????????????# #??????????????????????? | | ?????????????????????+ +??????????????????????? | | ?????????????????????# #?????""???????????????? | | ?????????????????????# #????S""???????????????? | | ?????????????????????# #????""????????????????? | | ??????"""????????????# @#??????????????????????? | | ??????"""????????????# #??????????????????????? | | ??????"""????????????# %#??????????????????????? | | ?????????????????????# #??????????????????????? | | ?????????????????????#k% #??????????????????????? | | ?????????ss??????????# #??#######?????????????? | | ?????????????????????# #? [#?????????????? | | ?????????s???????????# #? ??????????????? | | ?????????????????????# # """ ??????????????? | | ???????????+##########m # """ #?????????????? | | ?????????? " R" #?????????????? | | ?????????? # """ #?????????????? | | ?????????? # "" #?????????????? | | ?????????? #? #?????????????? | | ???????????#### """ #? #?????????????? | | ??????????????# """ #??#######?????????????? | | ??????????????# """ #??????????????????????? | | ??????????????# """ s #??????????????????????? | | ?????""""?????# """ #???####???????????????? | | ?????""""?????# """ #??? ???????????????? | | ?????""""?????# """ #?? ???????????????? | | ?????""""?????# #?? ????????????????? | | ??????????????# #? """ """????????????? | | ??????????????# #? """ """????????????? | | ??????????????# """ # """ """????????????? | +----------------------------------------------------+ Best States ------------- Heat Dissipation 69 Energy Generation 34 Energy Capacity 660 Matter Stores 300 Matter Capacity 300 Sight Range 16 Robot Scan Range 16 Terrain Scan Density 10 Armor Coverage 450 Resistance: KI 30 Resistance: EM 25 Propulsion Shielding 90 Weapon Cycling 15 Evasion (%) 65 Targeting Accuracy 12 Core Analysis 6 Recoil Reduction 6 Salvage Targeting 2 Offensive Hacking 24 Defensive Hacking 10 Item Schematics ----------------- Combat Drone Bay | -7/Data Miner | Free Cld. Aerolev Unit | -7/Data Miner | Free Lgt. Regenerative Plating | -7/Data Miner | Free Gravity Neutralizer | -7/Data Miner | Free Prc. Rocket Launcher | -7/Data Miner | Free Field Propulsion Drive | -7/Data Miner | Free Adv. Shield Generator | -7/Data Miner | Free Disruptor Cannon | -7/Data Miner | Free Arm. Leg | -7/Data Miner | Free Imp. Focal Shield | -7/Data Miner | Free Rnf. Fission Core | -7/Data Miner | Free Lgt. Antimatter Reactor | -7/Data Miner | Free Assault Drone Bay | -5/Zhirov | Free Exp. Heat Sink | -5/Zhirov | Free Exp. Optical Array | -5/Zhirov | Free Imp. Arc Thrower | -5/Zhirov | Free Robot Schematics ------------------ X-62 Marksman | -7/Data Miner | Free R-10 Processor | -7/Data Miner | Free P-70 Sage | -7/Data Miner | Free M-28 Smith | -7/Data Miner | Free G-47 Trooper | -7/Data Miner | Free H-55 Commando | -7/Data Miner | Free G-50 Soldier | -7/Data Miner | Free Fabricated ------------ Nothing Alien Tech Used ----------------- Integrated Dissipator Achievements -------------- None Challenges ------------ None Game ------ Seed SingularityTargetCutter Manual? 0 Play Time 01:43:44 Cumulative 136.3 hours Start 2022.12.10 @ 20:04:03 End 2022.12.10 @ 21:48:50 Sessions 1 Manual Loads 0 Difficulty Rogue Special Mode None Game No. 233 Rogue 233 Adventurer 0 Explorer 0 Win Type - Total 2 Types 1/0/1/0/0/0/0/0/0 Lore% 65 Gallery% 74 Achievement% 53 Wizard Run 0 Options --------- ASCII 0 Keyboard 0 Movement Mouse Keybinds 0 Fullscreen 1 Font 18/SmallcapsGlow Map View 76x50 Tactical HUD 1 Map Filters NONE Filters NONE Steam 1 RUN: 01efa6a5-dc75-46f6-b0c4-3fc83b76b82b